Cogmind - Beta 16 @@@ ROGUE MODE // 2025.11.04 @ 20:00:27 Player: taku_the_hopeless Result: Destroyed by G-34 Mercenary with Small Laser Performance ------------- Evolutions (0) 0 Regions Visited (1) 200 Robots Destroyed (10) 50 Value Destroyed (125) 125 Prototype IDs (0) 0 Alien Tech Used (0) 0 Bonus (0) 0 TOTAL SCORE: 375 Bonus ------- None Cogmind --------- Core Integrity 0/250 Matter 58/300 Energy 85/100 System Corruption 1% Temperature Cool (6) Movement Core (50) Location -10/Materials Parts ------- > --- POWER (1) -------- (None) > --- PROPULSION (2) --- (None) > --- UTILITY (2) ------ (None) > --- WEAPON (2) ------- (None) > --- INVENTORY (5) ---- Assault Rifle Assault Rifle Light Cannon Hammer Hammer Peak State ------------ > --- POWER ------------ (None) > --- PROPULSION ------- Aluminum Leg Aluminum Leg > --- UTILITY ---------- Medium Storage Unit Structural Scanner > --- WEAPON ----------- Assault Rifle Assault Rifle > --- INVENTORY -------- Light Cannon Grenade Launcher [Rating: 6] Favorites ----------- Power None Propulsion Aluminum Leg Leg Aluminum Leg Utility Medium Storage Unit Device Structural Scanner Storage Medium Storage Unit Weapon Assault Rifle Ballistic Gun Assault Rifle Ballistic Cannon Light Cannon Launcher Grenade Launcher Impact Weapon Hammer Build | -11 -10 ------- Run | Yrd Mat Slots Evolved . | . . Power . | . . Propulsion . | . . Utility . | . . Weapon . | . . Parts Attached 10 | 2 8 Power . | . . Engine . | . . Core . | . . Reactor . | . . Propulsion 2 | 2 . Treads . | . . Leg 2 | 2 . Wheel . | . . Hover . | . . Flight . | . . Utility 2 | . 2 Device 1 | . 1 Storage 1 | . 1 Processor . | . . Hackware . | . . Protection . | . . Artifact . | . . Weapon 6 | . 6 Energy Gun . | . . Energy Cannon . | . . Ballistic Gun 3 | . 3 Ballistic Cannon 1 | . 1 Launcher 1 | . 1 Special Weapon . | . . Impact Weapon 1 | . 1 Slashing Weapon . | . . Piercing Weapon . | . . Special Melee Weapon . | . . Unidentified Prototypes . | . . Parts Lost . | . . Power . | . . Propulsion . | . . Utility . | . . Weapon . | . . Highest Loss Streak . | . . To Critical Strikes . | . . Average Backups 3 | . 3 Power . | . . Propulsion . | . . Utility . | . . Weapon 3 | . 3 Tool/Special . | . . Unused Backups 5 | . 5 Power . | . . Propulsion . | . . Utility . | . . Weapon 5 | . 5 Tool/Special . | . . Average Slot Usage (%) 63 | . 63 Leg 27 | . 27 Device 7 | . 7 Storage 10 | . 10 Ballistic Gun 8 | . 8 Ballistic Cannon 2 | . 2 Launcher 4 | . 4 Impact Weapon 2 | . 2 Peak Build Rating 6 | 2 6 Average Rating 4 | 1 4 On Entrance 1 | . 2 Avg Prop Armor Cover (%) . | . . Naked Turns 12 | . 12 Heaviest Build 15 | . 15 Greatest Support 20 | 20 20 Greatest Overweight (x) . | . . Average Overweight (x) . | . . Largest Inventory Capacity 10 | 5 10 Average Capacity 8 | 5 8 Most Carried 10 | . 10 Average Carried 3 | . 3 Final Capacity 5 | 5 5 Final Carried 5 | . 5 Class Distribution -------------------- 100% | Mutant Dominant Class ---------------- Mutant | -10/Materials Resources | -11 -10 ----------- Run | Yrd Mat Matter Collected 203 | 183 20 Remotely . | . . Salvage Created 133 | . 133 Parts 25 | . 25 Haulers Intercepted . | . . Recyclers Shooed 1 | . 1 Parts Field Recycled . | . . Retrieved Matter . | . . Parts Self-Destructed . | . . Prevented . | . . Parts Restored . | . . Kills | -11 -10 ------- Run | Yrd Mat Combat Hostiles Destroyed 4 | . 4 AOE 4 | . 4 Classes Destroyed 7 | . 7 Worker 1 | . 1 Builder 1 | . 1 Tunneler 1 | . 1 Recycler 1 | . 1 Watcher 2 | . 2 Swarmer 3 | . 3 Grunt 1 | . 1 Best Kill Streak 8 | . 8 Combat Bots Only 4 | . 4 Max Kills in Single Turn 2 | . 2 Gunslinging . | . . Exploded 2 | . 2 Melee . | . . Uniques/NPCs Destroyed . | . . Combat | -11 -10 -------- Run | Yrd Mat Hostile Shots Fired 50 | . 50 Missed 17 | . 17 Hits 33 | . 33 Projectile 33 | . 33 Damage Taken 325 | . 325 Core 258 | . 258 Absorbed by Shields . | . . Regen/Repaired (Parts) 8 | . 8 Core Remaining (%) 100 | 100 . Volleys Fired 13 | . 13 Largest 2 | . 2 Hottest 50 | . 50 Shots Fired 14 | . 14 Gun 1 | . 1 Cannon . | . . Launcher 13 | . 13 Special . | . . Kinetic 1 | . 1 Thermal . | . . Explosive 13 | . 13 Electromagnetic . | . . Robot Hit Streak 1 | . 1 Robot Miss Streak . | . . Penetration Max . | . . Secondary Targets . | . . Shots Hit Robots 1 | . 1 Core Hits 19 | . 19 Critical Kills . | . . Critical Parts Destroyed . | . . Critical Strikes . | . . Melee Attacks . | . . Impact . | . . Slashing . | . . Piercing . | . . Sneak Attacks . | . . Combat Hostiles . | . . Follow-up Attacks . | . . Damage Inflicted 465 | . 465 Guns . | . . Cannons . | . . Explosions 458 | . 458 Melee . | . . Ramming 7 | . 7 Kinetic . | . . Thermal . | . . Explosive 458 | . 458 Electromagnetic . | . . Impact . | . . Slashing . | . . Piercing . | . . Highest Corruption 1 | . 1 Average Corruption 1 | . 1 Corruption Purged . | . . Corruption Blocked . | . . Effects 1 | . 1 Energy Discharges 1 | . 1 Overload Shots . | . . Overflow Damage 3 | . 3 Projectiles . | . . Explosions 3 | . 3 Melee . | . . Knockbacks . | . . Impact . | . . Kinetic . | . . Secondary . | . . Self-Inflicted Damage 31 | . 31 Shots 1 | . 1 Rammed 3 | . 3 Targets Rammed 3 | . 3 Kicked . | . . Crushed . | . . Highest Temperature . | . . Average Temperature . | . . Received Heat Transfer 60 | . 60 Siege Activations . | . . Martial Activations . | . . Shielding Activations . | . . Robots Disrupted . | . . Combat Hostiles . | . . Robots Corrupted . | . . Combat Hostiles . | . . Parts Fried . | . . Impact Corruptions . | . . Robots Melted . | . . Combat Hostiles . | . . Parts Melted . | . . Heat Transferred . | . . Parts Sabotaged . | . . Parts Stolen . | . . Parts Stripped . | . . Power Chain Reactions . | . . Alert | -11 -10 ------- Run | Yrd Mat Maximum Alert Level . | . . Low Security (%) 100 | 100 100 Level 1 . | . . Level 2 . | . . Level 3 . | . . Level 4 . | . . Level 5 . | . . High Security . | . . Max Security . | . . Peak Influence 154 | . 154 Initial . | . . Average 70 | . 78 Influence Increases 184 | . 184 Destroy 0b10 Robot/C 80 | . 80 Destroy 0b10 Robot/NC 30 | . 30 Destroy Leader 24 | . 24 Successful Hack 10 | . 10 Disable Machine 15 | . 15 Destroy Structure 25 | . 25 Influence Decreases 115 | . 115 Time Decay 115 | . 115 Squads Dispatched 2 | . 2 Investigation 1 | . 1 Extermination . | . . Reinforcement 1 | . 1 Assault . | . . Garrison . | . . Intercept . | . . Searches Triggered . | . . Construction Impeded . | . . Haulers Reinforced . | . . Active Scanning Responses . | . . Cargo Convoy Interrupts . | . . Stealth | -11 -10 --------- Run | Yrd Mat Distress Signals 2 | . 2 Communications Jammed . | . . Distress Signals . | . . Times Spotted 15 | . 15 Peak Tracking Total 9 | . 9 Tactical Retreats . | . . Traps | -11 -10 ------- Run | Yrd Mat Traps Triggered 1 | . 1 Indirectly . | . . Trap Hack Attempts . | . . Triggered . | . . Disarmed . | . . Reprogrammed . | . . Reused . | . . Traps Extracted . | . . Installed . | . . Triggered . | . . Machines | -11 -10 ---------- Run | Yrd Mat Machines Disabled 1 | . 1 Max in Single Turn 1 | . 1 Machines Repaired . | . . Machines Dismantled . | . . Machines Sabotaged . | . . Overloaded Fab Kills . | . . Hacking | -11 -10 --------- Run | Yrd Mat Machines Accessed 5 | . 5 Terminals 4 | . 4 Fabricators . | . . Repair Stations 1 | . 1 Recycling Units . | . . Scanalyzers . | . . Garrison Access . | . . Total Hacks 14 | . 14 Successful 8 | . 8 Failed 6 | . 6 Catastrophic . | . . Database Lockouts . | . . Manual 11 | . 11 Terminals 12 | . 12 Fabricators . | . . Repair Stations 2 | . 2 Recycling Units . | . . Scanalyzers . | . . Garrison Access . | . . Terminal Hacks 1 | . 1 Robot Analysis 1 | . 1 Fabricator Hacks . | . . Repair Station Hacks 2 | . 2 Scan Component 1 | . 1 Repair 1 | . 1 Recycling Unit Hacks . | . . Scanalyzer . | . . Garrison Access Hacks . | . . Unauthorized Hacks 5 | . 5 Terminals 5 | . 5 Botnet 2 | . 2 Skim 3 | . 3 Fabricators . | . . Repair Stations . | . . Recycling Units . | . . Scanalyzers . | . . Garrison Access . | . . Data Cores Recovered . | . . Used . | . . Hacking Detections 5 | . 5 Full Trace Events 1 | . 1 Feedback Events . | . . Feedback Blocked . | . . Robot Schematics Acquired . | . . Robots Built . | . . Authchips . | . . Time . | . . Total Robot Build Rating . | . . Part Schematics Acquired . | . . Parts Built . | . . Authchips . | . . Time . | . . Total Part Build Rating . | . . Part Studies Acquired . | . . Parts Repaired 1 | . 1 Time 26 | . 26 Parts Recycled . | . . Recycled Matter . | . . Retrieved Matter . | . . Retrieved Components . | . . Parts Scanalyzed . | . . Part Schematics Acquired . | . . Parts Damaged . | . . Bothacking | -11 -10 ------------ Run | Yrd Mat Used RIF Installer . | . . Robots Hacked . | . . Non-combat . | . . Combat . | . . Robot Hacks Applied . | . . Relay Couplers Released . | . . Fabnet Peak Effective % . | . . Robots Rewired . | . . Allies Hacked . | . . Hacks Repelled . | . . Allies | -11 -10 -------- Run | Yrd Mat Total Allies . | . . Largest Group . | . . Highest-Rated Group . | . . Highest-Rated Ally . | . . Total Orders . | . . Ally Attacks . | . . Total Damage . | . . Kills . | . . Allies Corrupted . | . . Allies Melted . | . . Intel | -11 -10 ------- Run | Yrd Mat Active Infowar (turns) 169 | . 169 Structural 169 | . 169 Robot Analysis Total 1 | . 1 Derelict Logs Recovered . | . . Drone Launches . | . . Drone Recoveries . | . . Exploration | -11 -10 ------------- Run | Yrd Mat Turns Passed 355 | 39 316 Spaces Moved 241 | 38 203 Core 25 | 12 13 Treads . | . . Legs 216 | 26 190 Wheels . | . . Hover . | . . Flight . | . . Fastest Speed 50 | 50 50 Average Speed 112 | 97 115 Slowest Speed 120 | 120 120 Overloaded Moves . | . . Propulsion Burnouts . | . . Robots Hopped . | . . Potential Cave-ins . | . . Cave-ins Triggered . | . . Exploration Rate (%) 22 | 3 41 Regions Visited 1 Branch Regions . Pre-discovered Areas . | . . Known Exits Taken . | . . Unknown Exits Taken 1 | 1 . Scrap Searched . | . . Spaces Dug 3 | . 3 Terrain Destroyed 30 | . 30 Melee . | . . Projectile . | . . AOE 30 | . 30 Terrain Rammed . | . . Walls Destroyed . | . . Machines Disabled . | . . Actions | -11 -10 --------- Run | Yrd Mat Total 306 | 39 267 Wait 28 | . 28 Move 240 | 37 203 Hop . | . . Pick Up 7 | . 7 Fast Attach 9 | 2 7 Attach 1 | . 1 Detach 3 | . 3 Swap 2 | . 2 Drop . | . . Fire 13 | . 13 Melee . | . . Ram 3 | . 3 Kick . | . . Crush . | . . Escape Stasis . | . . Rewire . | . . Trap . | . . Miscellaneous . | . . Route ------- -11/Scrapyard -10/Materials (discovered 1 exit: [*Min]) History --------- Turn | Location | Event 4 | -11/Scrapyard | Discovered new exit (range 15) 40 | -11/Scrapyard | Entered Materials 190 | -10/Materials | Repaired Structural Scanner 235 | -10/Materials | Discovered new exit (range 14) 334 | -10/Materials | Build established: Mutant 344 | -10/Materials | Released all parts (6) 350 | -10/Materials | Core integrity fell below 50% 354 | -10/Materials | Core integrity fell below 20% 356 | -10/Materials | Destroyed by G-34 Mercenary with Small Laser Last Messages --------------- Terminal linked with 1 system. Please expand to 3 more systems! >>Trojan(Botnet) Trojan loaded successfully. Testing... Terminal linked with 0 systems. Awaiting botnet instructions. 00340_ System corrupted: Energy discharge (-31). 00340_ K-01 Serf collects debris. 00341_ K-01 Serf destroyed. 00341_ T-07 Excavator destroyed. 00344_ Released Assault Rifle. 00344_ Released Structural Scanner. 00344_ Released Aluminum Leg. 00344_ Released Med. Storage Unit. 00344_ Released Grenade Launcher. 00349_ W-16 Scout sends out distress signal. 00353_ Slammed into G-34 Mercenary. 00353_ Destabilizing: Core damaged (-7). 00354_ Slammed into G-34 Mercenary. Map ----- +----------------------------------------------------+ | ?????????????????????????## ????????? # """ | | ?????????????????????????## ????????? # """ | | ?????????????????????????## ########### """ | | ?????????????????????????## ############ | | ?????????????????????????## ## # | | ?????????????????????????## ## """ + | | ????????????????????????### ##! """ # | | ????????????????????????### ## | """ # | | ????????????????????????## # | """ # #### | | ????????????????????????## # || """ # #### | | ????????????????????????## # # #### | | ????????????????????????## [######+#### # "" | | ????????????????????????## [=!###### #### # "" | | ????????????????????????### ![##T#### # "" | | ???????????????????#?????## [=[ # | | ???????????????????# ????## ] + | | ???????????????????# ????## "" """" # | | ???????????????????# ???## "" # | | ???????????????????# ???## """" % # | | ???????????????????# ??## """ = #### | | ??????????????????## #### == "" | | ???????????+####### w =%*!= * | | ??????????? |!=%!%* | | ?????????? ############# # | | ??????????? g ###### ## ## | | ????????????####### @ ##??####### | | ??????????????????## g # ?? ##### | | ???????????????????# #????????### | | ???????????????????# #????????###### ## | | ???????????????????# s +?????????# ## | | ???????????????????# s #?????????#"" ## | | ???????????????????# #?????????#"T T# | | ???????????????????#s #########?????????#"" ## | | ??????????????????? ??????????????????# ## | | ?????????????????? ??????????????????# # | | ?????????????????# ???????????????????######## | | ?????????????????# ????????????????????####### | | ?????????????????# ??????????????????????????# | | ??????????????????# ???????????????????????????# | | ????????????????????????????????????????????????## | | ?????????????????????????????????????????????????# | | ?????????????????????????????????????????????????# | | ?????????????????????????????????????????????????# | | ?????????????????????????????????????????????????# | | ?????????????????????????????????????????????????# | | ?????????????????????????????????????????????????? | | ?????????????????????????????????????????????????? | | ?????????????????????????????????????????????????? | | ?????????????????????????????????????????????????? | | ?????????????????????????????????????????????????? | +----------------------------------------------------+ Best States ------------- Heat Dissipation 25 Energy Generation 5 Energy Capacity 100 Matter Stores 263 Matter Capacity 300 Sight Range 16 Terrain Scan Density 10 Evasion (%) 55 Item Schematics ----------------- None Robot Schematics ------------------ None Fabricated ------------ Nothing Repaired ---------- Structural Scanner | 60% | -10/Materials Studied --------- None Alien Tech Used ----------------- None Achievements -------------- None Challenges ------------ None Game ------ Seed RefineryAccelerationWings Manual? 0 Play Time 00:06:17 Cumulative 269.4 hours Start 2025.11.04 @ 19:57:12 End 2025.11.04 @ 20:00:27 Sessions 1 Manual Loads 0 Difficulty Rogue Special Mode None Game No. 302 Rogue 302 Adventurer 0 Explorer 0 Win Type - Total 3 Types 3/0/0/0/0/0/0/0/0/0 Lore% 76 Gallery% 71 Achievement% 51 Wizard Run 0 Options --------- Layout 0 ASCII 0 Keyboard 0 Movement Vi Keybinds 0 Fullscreen 2 Font 18/VGA_Max Map View 76x50 Zoom Use 0% Tactical HUD 1 Map Filters NONE Filters NONE Steam 1 RUN: 09a57631-dbbc-4a4e-9837-4026b7b5b246